bitfinex-derivatives/quotes_ETHF0:USTF0_20250917
["timestamp","ask_amount","ask_price","bid_price","bid_amount"]
[1758086868776,4.1344,4483.9,4483.8,0.5095]
[1758086870578,4.1344,4483.9,4483.5,1.57043]
[1758086870782,0.7026,4483.7,4483.6,0.5095]
[1758086872884,0.7026,4483.7,4483.6,0.7176]
[1758086873280,0.2037,4483.7,4483.6,0.7176]
[1758086873485,3.4318,4483.9,4483.7,0.3061]
[1758086873688,0.2037,4483.8,4483.7,0.7176]
[1758086876186,0.7333,4483.8,4483.7,0.7176]
[1758086879188,0.4095,4483.8,4483.7,0.7176]
[1758086879887,0.2037,4483.8,4483.7,0.7176]
[1758086881991,0.4042,4483.8,4483.7,0.7176]
[1758086883288,0.7191,4483.8,4483.7,0.7176]
[1758086884193,0.4042,4483.8,4483.7,0.7176]
[1758086884388,0.2037,4483.8,4483.7,0.7176]
[1758086885288,0.4042,4483.8,4483.7,0.7176]
[1758086888197,0.7191,4483.8,4483.7,0.7176]
[1758086889299,0.4042,4483.8,4483.7,0.7176]
[1758086890197,0.7191,4483.8,4483.7,0.7176]
[1758086890795,0.7141,4483.6,4483.5,1.13663]
[1758086890994,4.94181353,4483.6,4483.5,1.13663]
[1758086891199,5.74082551,4483.6,4483.5,1.13663]
[1758086891602,5.74082551,4483.6,4483.5,1.44423]
[1758086891803,5.51778551,4483.6,4483.5,1.44423]
[1758086891997,4.72187198,4483.6,4483.5,1.96263]
[1758086893104,4.1459,4483.6,4483.5,1.96263]
[1758086896004,3.2078,4483.6,4483.5,1.96263]
[1758086898909,3.4065,4483.6,4483.5,1.96263]
[1758086899709,3.9219,4483.6,4483.5,1.96263]
[1758086900804,3.9219,4483.6,4483.5,1.13663]
[1758086900805,4.1459,4483.6,4483.5,1.13663]
[1758086901107,4.72130981,4483.6,4483.5,1.13663]
[1758086902308,9.74026334,4483.6,4483.5,0.11803]
[1758086902512,49.74434981,4483.6,4483.5,0.4256]
[1758086902803,49.20640981,4483.6,4483.5,0.4256]
[1758086903009,49.42944981,4483.6,4483.5,0.4256]
[1758086903709,49.20640981,4483.6,4483.5,0.4256]
[1758086910913,50.00232334,4483.6,4483.5,0.4256]
[1758086911420,49.20640981,4483.6,4483.5,0.4256]
[1758086919327,45.20640981,4483.6,4483.5,0.4256]
[1758086921831,44.98240981,4483.6,4483.5,0.4256]
[1758086922031,45.20640981,4483.6,4483.5,0.4256]
[1758086924634,45.21016491,4483.6,4483.5,0.4256]
[1758086928129,45.38287844,4483.6,4483.5,0.8529]
[1758086928329,45.60687844,4483.6,4483.5,0.8529]
[1758086933239,3.78696491,4483.6,4483.5,0.8529]
[1758086933529,4.01096491,4483.6,4483.5,0.8529]
[1758086934035,4.01096491,4483.6,4483.5,4.8529]
[1758086934441,3.4318,4483.6,4483.5,4.8529]
[1758086940745,3.2078,4483.6,4483.5,4.8529]
[1758086942553,2.2326,4483.6,4483.5,4.8529]
[1758086944252,2.2326,4483.6,4483.5,0.8529]
[1758086944548,2.6341,4483.6,4483.5,0.8529]
[1758086944752,3.0482,4483.6,4483.5,0.3076]
[1758086945152,2.8581,4483.6,4483.5,0.8473]
[1758086945656,2.4566,4483.6,4483.5,0.8473]
[1758086949461,2.6547,4483.6,4483.5,0.8473]
[1758086952465,2.4566,4483.6,4483.5,0.8473]
[1758086953758,2.2326,4483.6,4483.5,0.8473]
[1758086953957,0.1901,4484.8,4483.6,0.3244]
[1758086954154,0.4015,4484.8,4484.7,0.7346]
[1758086954356,0.8156,4484.8,4484.7,0.3244]
[1758086954958,0.4221,4484.8,4484.7,0.7346]
[1758086955763,0.6255,4484.8,4484.7,0.7346]
[1758086958661,0.1981,4484.8,4484.7,0.7346]
[1758086958864,0.1981,4484.8,4484.5,0.1517]
[1758086958865,3.4318,4484.9,4484.8,0.7346]
[1758086960065,3.2078,4484.9,4484.8,0.7346]
[1758086960362,3.4318,4484.9,4484.8,0.7346]
[1758086961466,3.6299,4484.9,4484.8,0.7346]
[1758086961961,4.97839376,4484.9,4484.5,0.1517]
[1758086962166,4.97839376,4484.9,4484.6,0.3244]
[1758086962167,0.4015,4484.7,4484.6,0.3244]
[1758086962367,0.8156,4484.7,4484.6,0.3244]
[1758086963872,0.8156,4484.7,4484.6,0.534]
[1758086964370,0.4221,4484.7,4484.6,0.7346]
[1758086964570,0.224,4484.7,4484.6,0.7346]
[1758086965969,0.4221,4484.7,4484.6,0.7346]
[1758086966272,0.224,4484.7,4484.6,0.7346]
[1758086969074,0.4357,4484.7,4484.6,0.7346]
[1758086971377,0.6403,4484.7,4484.6,0.7346]
[1758086976483,0.8301,4484.7,4484.6,0.7346]
[1758086976783,0.8301,4484.7,4484.6,0.534]
[1758086976985,0.8301,4484.7,4484.6,0.3244]
[1758086980680,0.8301,4484.7,4484.6,0.537]
[1758086982282,0.6403,4484.7,4484.1,0.3168]
[1758086982580,0.6061,4484.2,4484.1,0.5294]
[1758086987385,0.6061,4484.2,4484.1,0.3168]
[1758086988490,0.8301,4484.2,4484.1,0.3168]
[1758086988692,0.8301,4484.2,4484.1,0.5294]
[1758086988991,0.6403,4484.2,4484.1,0.7387]
[1758086989192,0.4357,4484.2,4484.1,0.7387]
[1758086990489,0.8301,4484.2,4484.1,0.7387]
[1758086991594,0.6403,4484.2,4484.1,0.7387]
[1758086993397,0.8301,4484.2,4484.1,0.5294]
[1758086994099,0.8301,4484.2,4484.1,0.3168]
[1758086995094,0.6403,4484.2,4484.1,0.7387]
[1758087000211,3.2078,4484.4,4484.2,0.3047]
[1758087000503,3.2078,4484.4,4484.3,0.3047]
[1758087000700,3.4318,4484.4,4484.3,0.7227]
[1758087004310,0.224,4484.4,4484.3,0.7227]
[1758087004505,3.2078,4484.9,4484.5,0.1241]
[1758087004706,3.2078,4484.9,4484.8,0.418]
[1758087004904,3.2078,4484.9,4484.8,0.7227]
[1758087006004,3.6314,4484.9,4484.8,0.7227]
[1758087006203,3.8214,4484.9,4484.8,0.5149]
[1758087006403,3.6314,4484.9,4484.8,0.7227]
[1758087012414,3.8214,4484.9,4484.8,0.7227]
[1758087013210,3.8214,4484.9,4484.8,0.3047]
[1758087014612,3.8214,4484.9,4484.8,0.5149]
[1758087015719,3.6314,4484.9,4484.8,0.7227]
[1758087016519,3.8214,4484.9,4484.8,0.7227]
[1758087018517,3.8214,4484.9,4484.8,0.5149]
[1758087018822,0.4236,4484.7,4484.6,0.3047]
[1758087019016,0.6136,4484.2,4484.1,0.327]
[1758087019321,1.40930408,4484.2,4484.1,0.327]
[1758087019522,1.40930408,4484.2,4484.1,0.3047]
[1758087019717,1.40930408,4484.2,4483.6,0.3047]
[1758087019921,0.6136,4483.7,4483.6,0.3047]
[1758087020222,0.4236,4483.7,4483.6,0.5149]
[1758087020416,0.4236,4483.7,4483.6,0.7227]
[1758087020614,0.224,4484.1,4484.0,0.8468]
[1758087020819,0.224,4484.1,4484.0,1.64250408]
[1758087021020,3.2078,4484.3,4484.2,0.7227]
[1758087024025,3.4208,4484.3,4484.2,0.7227]
[1758087024327,0.213,4484.3,4484.2,0.7227]
[1758087024724,0.224,4484.6,4484.2,0.418]
[1758087024922,0.437,4484.6,4484.5,0.8468]
[1758087025427,0.6476,4484.6,4484.5,0.8468]
[1758087026730,0.437,4484.8,4484.7,0.418]
[1758087026924,0.437,4484.8,4484.7,0.7227]
[1758087027126,0.213,4484.8,4484.7,0.7227]
[1758087027329,0.437,4484.8,4484.7,0.7227]
[1758087028126,0.6476,4484.8,4484.7,0.5149]
[1758087029030,0.6476,4484.8,4484.7,0.7227]
[1758087035333,0.8374,4484.8,4484.7,0.7227]
[1758087035629,0.6,4484.7,4484.6,0.2966]
[1758087036131,0.6,4484.7,4484.6,0.4937]
[1758087037935,0.6,4484.7,4484.6,0.7002]
[1758087037936,0.1981,4484.7,4484.6,0.7002]
[1758087038337,0.224,4484.7,4484.6,0.7002]
[1758087040531,3.2078,4484.9,4484.6,0.4036]
[1758087040737,3.4318,4484.9,4484.8,0.4036]
[1758087041042,3.6299,4484.9,4484.8,0.7002]
[1758087041641,3.842,4484.9,4484.8,0.7002]
[1758087043843,0.6342,4484.9,4484.8,0.7002]
[1758087044645,0.224,4484.9,4484.8,0.7002]
[1758087045337,3.2078,4485.4,4485.0,0.1296]
[1758087045644,3.6299,4485.4,4485.3,0.7002]
[1758087045841,4.2080265,4485.4,4485.3,0.7002]
[1758087046241,3.842,4485.4,4485.3,0.7002]
[1758087047447,4.0318,4485.4,4485.3,0.7002]
[1758087048941,3.842,4485.4,4485.3,0.7002]
[1758087049448,4.41370408,4485.9,4485.8,0.1971]
[1758087049647,4.41974424,4485.9,4485.8,0.7002]
[1758087050142,3.842,4485.9,4485.8,0.7002]
[1758087051242,4.0318,4485.9,4485.8,0.7002]
[1758087051542,4.0318,4485.9,4485.8,0.4937]
[1758087051742,4.0318,4485.9,4485.8,0.2966]
[1758087051944,4.0318,4485.9,4485.8,0.4937]
[1758087055249,3.842,4485.9,4485.8,0.7002]
[1758087055449,4.0317,4485.9,4485.8,0.7002]
[1758087056548,3.842,4485.9,4485.8,0.7002]
[1758087058948,4.0322,4485.9,4485.8,0.7002]
[1758087059349,3.842,4485.9,4485.8,0.7002]
[1758087061152,4.0322,4485.9,4485.8,0.7002]
[1758087061851,4.0322,4485.9,4485.8,0.2966]
[1758087065256,4.82790408,4485.9,4485.8,0.2966]
[1758087065756,0.1902,4485.8,4485.6,0.306]
[1758087065948,0.5877,4485.6,4485.5,0.1296]
[1758087066148,0.5877,4485.6,4485.5,0.3341]
[1758087066550,0.3975,4485.6,4485.5,0.8405]
[1758087070154,0.224,4485.7,4485.5,0.8405]
[1758087070354,3.2078,4485.9,4485.8,0.7109]
[1758087072459,3.7955,4485.9,4485.8,0.5105]
[1758087072652,4.55966915,4485.9,4485.5,0.1296]
[1758087072961,0.3975,4485.7,4485.6,0.5105]
[1758087073455,0.3975,4485.7,4485.6,0.7109]
[1758087073655,0.1971,4485.7,4485.6,0.7109]
[1758087074658,0.3975,4485.7,4485.6,0.7109]
[1758087075358,0.1971,4485.7,4485.6,0.7109]
[1758087076963,0.3975,4485.7,4485.6,0.7109]
[1758087079757,0.1971,4485.7,4485.6,0.7109]
[1758087079959,0.224,4485.9,4485.6,0.4049]
[1758087080158,0.4211,4485.9,4485.8,0.4049]
[1758087080368,0.4211,4485.9,4485.8,0.7109]
[1758087081868,0.6215,4485.9,4485.8,0.7109]
[1758087088569,0.4211,4485.9,4485.8,0.7109]
[1758087088873,0.224,4485.9,4485.8,0.7109]
[1758087089668,3.2078,4486.2,4485.8,0.4049]
[1758087089863,3.4318,4486.2,4486.0,0.1179]
[1758087090066,3.4318,4486.2,4486.1,0.7239]
[1758087090268,3.2078,4486.2,4486.1,0.7239]
[1758087093876,3.2078,4486.7,4486.1,0.4267]
[1758087094075,1.21255033,4486.6,4486.5,0.6281]
[1758087094372,1.21255033,4486.6,4486.5,0.8418]
[1758087094877,0.57765033,4486.6,4486.5,0.8418]
[1758087095079,3.2078,4486.7,4486.5,0.5446]
[1758087095080,0.224,4486.7,4486.5,0.5446]
[1758087095272,0.4363,4486.7,4486.6,0.7239]
[1758087100476,0.2123,4486.7,4486.6,0.7239]
[1758087102074,0.4109,4486.7,4486.6,0.7239]
[1758087102283,0.601,4486.7,4486.6,0.7239]
[1758087103083,0.4109,4486.7,4486.6,0.7239]
[1758087105481,0.601,4486.7,4486.6,0.7239]
[1758087105681,3.8088,4486.7,4486.6,0.7239]
[1758087105882,0.6964,4486.5,4486.4,0.0222]
[1758087106083,2.21656558,4486.5,4485.8,0.2972]
[1758087106381,3.7866,4485.9,4485.8,0.2972]
[1758087106586,3.7866,4485.9,4485.8,0.5102]
[1758087107377,3.6187,4485.9,4485.8,0.5102]
[1758087107782,3.7866,4485.9,4485.8,0.5102]
[1758087108988,3.6187,4485.9,4485.8,0.7239]
[1758087111593,3.2078,4485.9,4485.8,0.7239]
[1758087111996,3.4201,4485.9,4485.8,0.7239]
[1758087112194,3.2078,4486.6,4485.8,1.67826915]
[1758087112488,3.4201,4486.6,4486.5,0.8418]
[1758087112993,3.6441,4486.6,4486.5,0.8418]
[1758087115599,3.8427,4486.6,4486.5,0.8418]
[1758087116793,3.6187,4486.6,4486.5,0.8418]
[1758087118793,3.7864,4486.6,4486.5,0.8418]
[1758087119000,3.7864,4486.6,4486.5,0.4151]
[1758087120896,3.7864,4486.6,4486.5,0.2972]
[1758087121497,0.1677,4486.5,4486.1,0.3059]
[1758087121800,0.5792,4486.2,4486.1,0.3059]
[1758087122008,0.5792,4486.2,4486.1,0.5193]
[1758087123203,0.5792,4486.2,4486.1,0.3059]
[1758087125008,3.6193,4486.6,4486.5,0.8357]
[1758087125202,3.4159,4486.6,4486.5,0.8357]
[1758087126905,3.6193,4486.6,4486.5,0.8357]
[1758087127205,0.4115,4486.6,4486.5,0.8357]
[1758087129803,0.5792,4486.6,4486.5,0.6401]
[1758087130004,3.6193,4486.6,4486.1,0.3059]
[1758087130201,0.4115,4486.2,4486.1,0.5193]
[1758087130406,0.4115,4486.2,4486.1,0.7149]
[1758087130903,0.79489405,4486.4,4486.1,0.409]
[1758087131210,3.4159,4486.6,4486.5,0.8357]
[1758087131403,3.787,4486.6,4486.5,0.6401]
[1758087132402,3.4159,4486.6,4486.5,0.8357]
[1758087133411,0.2081,4486.6,4486.5,0.8357]
[1758087133803,0.4115,4486.6,4486.5,0.8357]
[1758087138113,0.2081,4486.6,4486.5,0.8357]
[1758087139712,0.224,4486.7,4486.6,0.3059]
[1758087139912,0.224,4486.7,4486.6,0.7149]
[1758087140711,0.6355,4486.7,4486.6,0.7149]
[1758087144812,0.224,4486.7,4486.6,0.7149]
[1758087145413,3.2078,4487.1,4486.6,0.7149]
[1758087145718,3.4159,4487.1,4487.0,0.8357]
[1758087146018,3.98486273,4487.1,4487.0,0.8357]
[1758087148514,0.224,4487.2,4487.0,0.5298]
[1758087148713,0.224,4487.2,4487.1,0.7262]
[1758087149214,0.4293,4487.2,4487.1,0.7262]
[1758087151817,1.42879405,4487.2,4487.1,0.7262]
[1758087152022,2.16499764,4487.2,4487.1,0.5136]
[1758087157727,1.99729764,4487.2,4487.1,0.7262]
[1758087158827,1.20240359,4487.2,4487.1,0.7262]
[1758087159030,0.4293,4487.2,4487.1,0.7262]
[1758087161031,0.99866791,4487.2,4487.1,0.7262]
[1758087169142,1.20326791,4487.2,4487.1,0.7262]
[1758087169441,1.37096791,4487.2,4487.1,0.5136]
[1758087169741,1.20326791,4487.2,4487.1,0.5136]
[1758087170039,1.20326791,4487.2,4487.1,0.7262]
[1758087170239,0.99866791,4487.2,4487.1,0.7262]
[1758087170841,1.20326791,4487.2,4487.1,0.7262]
[1758087171243,0.79336791,4487.2,4487.1,0.7262]
[1758087171443,3.2078,4487.6,4487.5,0.1244]
[1758087171737,3.77749957,4487.6,4487.5,0.8506]
[1758087172138,3.98279957,4487.6,4487.5,0.8506]
[1758087173742,4.20679957,4487.6,4487.5,0.8506]
[1758087174846,3.6371,4487.6,4487.5,0.8506]
[1758087175043,3.4318,4487.6,4487.5,0.8506]
[1758087175247,3.2078,4487.6,4487.5,0.8506]
[1758087176350,0.2135,4487.6,4487.5,0.8506]
[1758087178454,1.43639405,4488.0,4487.9,0.2144]
[1758087178655,1.43639405,4488.0,4487.9,0.5325]
[1758087179050,1.60419405,4488.0,4487.9,0.5325]
[1758087179245,0.6415,4488.0,4487.9,0.7325]
[1758087180752,1.43639405,4488.0,4487.9,0.7325]
[1758087181053,1.60419405,4488.0,4487.9,0.7325]
[1758087181451,0.8093,4488.0,4487.9,0.7325]
[1758087184258,0.4284,4488.0,4487.9,0.7325]
[1758087184558,0.6415,4488.0,4487.9,0.7325]
[1758087186860,0.8093,4488.0,4487.9,0.5325]
[1758087187062,0.6415,4488.0,4487.9,0.7325]
[1758087187852,3.2121831,4488.1,4488.0,0.4413]
[1758087188057,3.2121831,4488.1,4488.0,0.8557]
[1758087188257,0.0043831,4488.1,4488.0,0.8557]
[1758087190958,0.224,4488.5,4488.4,0.4144]
[1758087191158,3.6253,4488.8,4488.7,0.7325]
[1758087191864,3.4122,4488.8,4488.7,0.7325]
[1758087192964,3.6253,4488.8,4488.7,0.7325]
[1758087196675,3.7931,4488.8,4488.7,0.7325]
[1758087198970,3.7931,4488.8,4488.7,0.5325]
[1758087199373,3.6253,4488.8,4488.7,0.5325]
[1758087199871,3.7931,4488.8,4488.7,0.5325]
[1758087202466,3.6253,4488.8,4488.7,0.5325]
[1758087202973,3.6253,4488.8,4488.7,0.7325]
[1758087203370,0.4175,4488.8,4488.7,0.7325]
[1758087203566,0.2044,4488.8,4488.7,0.7325]
[1758087204671,0.4175,4488.8,4488.7,0.7325]
[1758087205663,3.2078,4489.3,4489.0,0.1232]
[1758087205867,0.4175,4489.1,4489.0,0.8557]
[1758087207775,0.6415,4489.1,4489.0,0.8557]
[1758087211472,0.4284,4489.1,4489.0,0.8557]
[1758087211672,0.224,4489.1,4489.0,0.8557]
[1758087213777,3.2078,4489.3,4489.0,0.8557]
[1758087213973,0.4285,4489.2,4489.1,0.7149]
[1758087214472,0.8054,4489.2,4489.1,0.3129]
[1758087214778,0.4142,4488.6,4488.5,0.3406]
[1758087214980,0.4142,4488.6,4488.5,0.8603]
[1758087215271,0.4142,4488.6,4488.5,0.8381]
[1758087216477,0.2045,4488.6,4488.5,0.8381]
[1758087220473,3.2078,4489.3,4489.2,0.402]
[1758087220781,0.6545,4489.4,4489.3,0.7149]
[1758087221083,1.0314,4489.4,4489.3,0.3129]
[1758087221377,0.8642,4489.4,4489.0,0.126]
[1758087221574,1.53464451,4489.2,4489.1,0.3129]
[1758087235887,0.5814,4489.2,4489.1,0.5135]
[1758087236082,0.4142,4489.2,4489.1,0.7272]
[1758087236590,0.5912,4488.5,4488.3,0.0222]
[1758087236889,5.54616922,4488.4,4488.3,0.0222]
[1758087237090,5.54616922,4488.4,4488.3,0.3194]
[1758087237289,5.54616922,4488.4,4488.3,0.2972]
[1758087238185,4.97624451,4488.4,4488.3,0.2972]
[1758087238384,3.412,4488.4,4488.3,0.6929]
[1758087239088,3.636,4488.4,4488.3,0.6929]
[1758087239287,3.412,4488.4,4488.3,0.6929]
[1758087239490,3.636,4488.4,4488.3,0.6929]
[1758087240190,3.4318,4488.4,4488.3,0.6929]
[1758087240690,3.4318,4488.4,4488.3,0.2972]
[1758087240691,4.0004,4488.4,4488.3,0.2972]
[1758087240890,3.7764,4488.4,4488.3,0.2972]
[1758087241091,4.0004,4488.4,4488.3,0.2972]
[1758087242889,0.1674,4488.3,4488.1,0.0222]
[1758087243092,1.74584451,4488.2,4488.1,0.0222]
[1758087243290,1.57844451,4488.2,4488.1,0.7411]
[1758087243492,0.6252,4488.2,4488.1,0.7189]
[1758087245293,0.7926,4488.2,4488.1,0.7189]
[1758087246289,0.6252,4488.2,4488.1,0.7189]
[1758087252896,0.7926,4488.2,4488.1,0.5238]
[1758087253102,0.7926,4488.2,4488.1,0.3113]
[1758087253598,0.7926,4488.2,4487.9,0.0222]
[1758087253800,1.19559633,4488.0,4487.3,0.3113]
[1758087254007,0.5464,4487.4,4487.1,0.3113]
[1758087254212,0.99859633,4487.2,4487.1,0.5064]
[1758087254409,1.19559633,4487.2,4487.1,0.7189]
[1758087254613,1.34079633,4487.2,4487.1,0.7189]
[1758087254906,1.34079633,4487.2,4487.1,0.3113]
[1758087255308,0.1452,4487.1,4486.7,0.3113]
[1758087255513,3.9782,4487.0,4486.9,0.32739]
[1758087255914,3.9782,4487.0,4486.9,0.01609]
[1758087257520,0.1291,4486.9,4486.2,0.3113]
[1758087257814,1.19559633,4486.3,4486.2,0.7189]
[1758087258007,1.41959633,4486.3,4486.2,0.7189]
[1758087258715,3.2078,4486.4,4486.3,0.7189]
[1758087258919,0.224,4486.7,4486.6,0.7189]
[1758087259117,0.224,4486.8,4486.7,0.7189]
[1758087263517,4.00219633,4487.1,4486.7,0.7189]
[1758087263716,0.224,4487.0,4486.8,0.3113]
[1758087263919,0.224,4487.0,4486.9,0.7189]
[1758087264718,1.01839633,4487.0,4486.9,0.7189]
[1758087264916,1.22259633,4487.0,4486.9,0.7189]
[1758087268124,1.41959633,4487.0,4486.9,0.7189]
[1758087271621,1.54879633,4487.0,4486.5,0.1236]
[1758087271823,1.54879633,4487.0,4486.5,0.8537]
[1758087271824,1.19479633,4486.6,4486.5,0.8537]
[1758087272022,1.41879633,4486.6,4486.5,0.8537]
[1758087272617,3.2078,4487.1,4486.5,0.5495]
[1758087272822,3.2078,4488.1,4488.0,0.5445]
[1758087273021,3.2078,4488.1,4488.0,1.64309633]
[1758087273226,0.201,4488.1,4488.0,1.33889633]
[1758087273427,0.201,4488.1,4488.0,0.5445]
[1758087273727,0.5296,4488.1,4488.0,0.3325]
[1758087273928,0.5296,4488.1,4488.0,0.6367]
[1758087274930,0.4004,4488.1,4488.0,0.6367]
[1758087275130,0.4004,4488.1,4488.0,0.8487]
[1758087280226,0.201,4488.1,4488.0,0.8487]
[1758087280434,1.21939633,4488.2,4488.1,0.7301]
[1758087280929,1.41879633,4488.2,4488.1,0.7301]
[1758087282829,0.6244,4488.2,4488.1,0.7301]
[1758087283030,1.41879633,4488.2,4488.1,0.7301]
[1758087285236,4.84940633,4488.2,4487.6,0.3042]
[1758087285527,1.19479633,4487.7,4487.6,0.7301]
[1758087285933,4.40259633,4487.7,4487.6,0.7301]
[1758087288535,0.224,4487.8,4487.7,0.3042]
[1758087288731,4.20319633,4488.3,4488.2,0.4259]
[1758087288936,4.42719633,4488.3,4488.2,0.7301]
[1758087289331,4.62659633,4488.3,4488.2,0.7301]
[1758087290233,4.22619633,4488.3,4488.2,0.7301]
[1758087290432,3.4318,4488.3,4488.2,0.7301]
[1758087291035,3.2078,4488.3,4488.2,0.7301]
[1758087291236,3.4318,4488.3,4488.2,0.7301]
[1758087291440,3.8322,4488.3,4488.2,0.7301]
[1758087298944,3.6328,4488.3,4488.2,0.7301]
[1758087301444,3.4318,4488.3,4488.2,0.7301]
[1758087302048,3.98535823,4488.3,4488.2,0.7301]
[1758087302249,4.20935823,4488.3,4488.2,0.7301]
[1758087302741,3.6395,4488.3,4488.2,0.7301]
[1758087302941,3.2078,4488.3,4488.2,0.7301]
[1758087304843,3.2078,4488.3,4488.2,4.7301]
[1758087305242,3.6232,4488.3,4488.2,0.7301]
[1758087309158,3.7526,4488.3,4488.2,0.5181]
[1758087309657,3.6232,4488.3,4488.2,0.5181]
[1758087312169,3.6232,4488.3,4488.2,0.7313]
[1758087314672,3.4155,4488.3,4488.2,0.7313]
[1758087314874,3.2078,4488.3,4488.2,0.7313]
[1758087315068,3.4155,4488.3,4488.2,0.7313]
[1758087317565,3.4155,4488.9,4488.8,0.7149]
[1758087317768,3.2078,4488.9,4488.8,0.7149]
[1758087318272,3.4155,4488.9,4488.8,0.7149]
[1758087319575,3.2078,4488.9,4488.8,0.7149]
[1758087322674,0.4317,4489.3,4489.2,0.2053]
[1758087322876,0.6394,4489.3,4489.2,0.5017]
[1758087323375,0.4154,4489.3,4489.2,0.7149]
[1758087323577,0.2077,4489.3,4489.2,0.7149]
[1758087324175,0.45,4489.4,4489.3,0.2964]
[1758087324369,0.45,4489.4,4489.3,0.7149]
[1758087324770,0.45,4489.4,4489.3,1.66808989]
[1758087325980,0.6577,4489.4,4489.3,1.66808989]
[1758087326481,0.45,4489.4,4489.3,1.66808989]
[1758087326878,0.45,4489.4,4489.3,1.89208989]
[1758087329282,0.6577,4489.4,4489.3,1.89208989]
[1758087329477,0.8556,4489.4,4489.3,1.89208989]
[1758087329682,0.8556,4489.4,4489.3,0.9389]
[1758087332683,0.8556,4489.4,4489.3,1.89208989]
[1758087333577,0.8556,4489.4,4489.3,0.9389]
[1758087340478,0.6577,4489.4,4489.3,0.9389]
[1758087342186,0.45,4489.4,4489.3,0.9389]
[1758087342388,0.45,4489.4,4489.3,1.89208989]
[1758087344090,0.6461,4489.4,4489.3,1.89208989]
[1758087345389,0.6461,4489.4,4489.3,0.9389]
[1758087348292,0.844,4489.4,4489.3,0.9389]
[1758087353400,0.844,4489.4,4489.3,0.7149]
[1758087353692,0.6461,4489.4,4489.3,0.9389]
[1758087355597,0.45,4489.4,4489.3,0.9389]
[1758087358999,0.45,4489.4,4489.3,1.89208989]
[1758087365201,0.3997,4490.1,4490.0,0.3169]
[1758087365406,0.3997,4490.1,4490.0,0.8393]
[1758087369713,3.7364,4490.6,4490.5,0.3224]
[1758087370011,4.17918009,4490.6,4490.1,0.3224]
[1758087370309,0.3997,4490.2,4490.1,0.5185]
[1758087370506,0.3997,4490.2,4490.1,0.7185]
[1758087371312,0.5286,4490.2,4490.1,0.3224]
[1758087371505,0.1289,4490.1,4489.7,0.3224]
[1758087371700,0.3997,4489.8,4489.7,0.5185]
[1758087373211,0.5286,4489.8,4489.7,0.3224]
[1758087374216,0.5286,4489.8,4489.0,3.3249]
[1758087374414,0.3997,4489.2,4489.1,0.9425]
[1758087374617,0.1289,4489.9,4489.1,0.6201]
[1758087374915,3.4029,4489.6,4489.5,0.8393]
[1758087376214,3.2078,4489.6,4489.5,0.8393]
[1758087378121,3.4029,4489.6,4489.5,0.8393]
[1758087379917,3.2078,4489.6,4489.5,0.8393]
[1758087383515,3.2078,4490.1,4490.0,0.1208]
[1758087383720,3.4029,4490.1,4490.0,1.63307111]
[1758087384217,0.1951,4490.1,4490.0,1.63307111]
[1758087386420,0.224,4490.5,4490.1,0.3224]
[1758087386621,0.6237,4490.5,4490.4,0.5185]
[1758087387118,1.48997111,4490.5,4490.0,0.4432]
[1758087387426,4.53017111,4490.1,4490.0,0.4432]
[1758087387617,3.7364,4490.1,4490.0,0.4432]
[1758087387924,3.6075,4490.1,4490.0,0.6393]
[1758087389622,3.7365,4490.1,4490.0,0.6393]
[1758087390523,0.129,4490.0,4489.6,0.3088]
[1758087390727,0.4061,4489.7,4489.6,0.5167]
[1758087391125,0.4061,4489.7,4489.6,0.7326]
[1758087392730,0.4061,4489.7,4489.6,1.52637111]
[1758087396629,0.5351,4489.7,4489.6,0.3088]
[1758087397424,0.5351,4489.7,4489.6,0.5167]
[1758087400229,0.4061,4489.7,4489.6,0.7326]
[1758087401031,4.00157111,4490.1,4490.0,0.3265]
[1758087401032,4.40767111,4490.1,4490.0,0.3265]
[1758087401232,3.83663,4490.1,4490.0,0.6353]
[1758087401434,3.6139,4490.1,4490.0,0.8512]
[1758087407243,3.7429,4490.1,4490.0,0.6353]
[1758087409147,3.7429,4490.1,4490.0,0.4274]
[1758087410246,3.7429,4490.1,4490.0,0.3088]
[1758087411249,3.7429,4490.1,4490.0,0.4274]
[1758087411652,3.7429,4490.1,4490.0,0.3088]
[1758087412146,3.7429,4490.1,4490.0,0.4274]
[1758087414452,3.7429,4490.1,4490.0,0.6353]
[1758087414652,3.6139,4490.1,4490.0,0.6353]
[1758087415552,3.7429,4490.1,4490.0,0.6353]
[1758087420257,3.7429,4490.1,4490.0,0.4274]
[1758087421257,3.6139,4490.1,4489.8,0.3251]
[1758087421553,0.4034,4489.9,4489.8,0.7355]
[1758087421856,0.4263,4490.0,4489.9,0.7133]
[1758087424153,0.6274,4490.0,4489.9,0.7133]
[1758087425561,0.7567,4490.0,4489.9,0.7133]
[1758087426764,0.7567,4490.0,4489.9,0.5031]
[1758087427365,0.5327,4490.0,4489.9,0.5031]
[1758087427562,1.55047111,4490.0,4489.9,0.5031]
[1758087427752,1.32647111,4490.0,4489.9,0.5031]
[1758087427957,1.55047111,4490.0,4489.9,0.5031]
[1758087429058,1.55047111,4490.0,4489.9,0.3029]
[1758087429257,1.55047111,4490.0,4489.7,0.0222]
[1758087429258,0.5327,4489.8,4489.7,0.0222]
[1758087429459,0.7567,4489.8,4489.7,0.0222]
[1758087429658,0.4034,4489.3,4489.2,0.3029]
[1758087429856,4.75827111,4489.3,4489.2,0.3029]
[1758087431859,0.5327,4488.7,4488.6,0.3029]